fUST/lending_fUST_20260612
["ID","MTS","AMOUNT","RATE_DAILY","PERIOD"]
[424881920,1781231451000,-500.0,0.0003726,18]
[424881869,1781231451000,-150.81051905,0.0003726,18]
[424881872,1781231451000,-500.0,0.0003726,18]
[424881876,1781231451000,-500.0,0.0003726,18]
[424881871,1781231451000,-853.99,0.0003726,18]
[424881874,1781231451000,-813.82,0.0003726,6]
[424881882,1781231451000,-632.15,0.0003726,18]
[424881886,1781231451000,-500.0,0.0003726,18]
[424881898,1781231451000,-500.0,0.0003726,18]
[424881900,1781231451000,-500.0,0.0003726,18]
[424881887,1781231451000,-1287.24,0.0003726,18]
[424881894,1781231451000,-500.0,0.0003726,18]
[424881896,1781231451000,-500.0,0.0003726,18]
[424881884,1781231451000,-1363.04,0.0003726,18]
[424881910,1781231451000,-836.14,0.0003726,18]
[424881926,1781231451000,-1014.47,0.0003726,18]
[424881904,1781231451000,-500.0,0.0003726,18]
[424881924,1781231451000,-555.84,0.0003726,18]
[424881918,1781231451000,-500.0,0.0003726,18]
[424881916,1781231451000,-500.0,0.0003726,18]
[424881914,1781231451000,-500.0,0.0003726,18]
[424881906,1781231451000,-500.0,0.0003726,18]
[424881932,1781231451000,-500.0,0.0003726,18]
[424881912,1781231451000,-500.0,0.0003726,18]
[424881902,1781231451000,-500.0,0.0003726,18]
[424881891,1781231451000,-978.16,0.0003726,18]
[424881889,1781231451000,-500.0,0.0003726,18]
[424881908,1781231451000,-500.0,0.0003726,18]
[424882068,1781231452000,-665.06,0.0003726,18]
[424882061,1781231452000,-3338.79,0.0003726,18]
[424882057,1781231452000,-500.0,0.0003726,18]
[424882062,1781231452000,-1411.07,0.0003726,18]
[424882066,1781231452000,-6094.36,0.0003726,18]
[424882058,1781231452000,-500.0,0.0003726,18]
[424882056,1781231452000,-644.78,0.0003726,18]
[424882048,1781231452000,-2933.19,0.0003726,11]
[424882055,1781231452000,-1342.78,0.0003726,18]
[424882046,1781231452000,-500.0,0.0003726,18]
[424882053,1781231452000,-500.0,0.0003726,18]
[424882060,1781231452000,-5500.81,0.0003726,18]
[424882047,1781231452000,-500.0,0.0003726,18]
[424882069,1781231452000,-6410.85,0.0003726,18]
[424882090,1781231452000,-517.94361913,0.00037477,58]
[424882059,1781231452000,-1613.81,0.0003726,18]
[424882071,1781231452000,-1323.25,0.0003726,18]
[424882073,1781231452000,-500.0,0.0003726,18]
[424882064,1781231452000,-500.0,0.0003726,18]
[424882075,1781231452000,-500.0,0.0003726,18]
[424882077,1781231452000,-500.0,0.0003726,18]
[424882079,1781231452000,-300.0,0.00037371,44]
[424882081,1781231452000,-319.43,0.000374,120]
[424882083,1781231452000,-300.0,0.00037458,45]
[424882085,1781231452000,-300.0,0.00037476,45]
[424882088,1781231452000,-151.0,0.00037477,58]
[424882096,1781231452000,-310.0,0.00037507,50]
[424882044,1781231452000,-687.74,0.0003726,18]
[424882063,1781231452000,-500.0,0.0003726,18]
[424882042,1781231452000,-1194.23,0.0003726,18]
[424881990,1781231452000,-4131.71,0.0003726,18]
[424882054,1781231452000,-1708.55,0.0003726,18]
[424882092,1781231452000,-307.19,0.00037479,45]
[424881992,1781231452000,-176.1025698,0.0003726,18]
[424881994,1781231452000,-1045.9,0.0003726,18]
[424882000,1781231452000,-500.0,0.0003726,18]
[424881998,1781231452000,-500.0,0.0003726,18]
[424881996,1781231452000,-500.0,0.0003726,18]
[424882002,1781231452000,-500.0,0.0003726,18]
[424882010,1781231452000,-1038.76,0.0003726,18]
[424882005,1781231452000,-500.0,0.0003726,18]
[424882009,1781231452000,-500.0,0.0003726,18]
[424882007,1781231452000,-500.0,0.0003726,18]
[424882012,1781231452000,-500.0,0.0003726,18]
[424882003,1781231452000,-728.55,0.0003726,2]
[424882014,1781231452000,-2908.74,0.0003726,18]
[424882016,1781231452000,-2024.84,0.0003726,18]
[424882025,1781231452000,-403.86042724,0.0003726,18]
[424882031,1781231452000,-5137.44,0.0003726,18]
[424882023,1781231452000,-500.0,0.0003726,18]
[424882020,1781231452000,-500.0,0.0003726,18]
[424882022,1781231452000,-728.51,0.0003726,18]
[424882027,1781231452000,-2031.31,0.0003726,18]
[424882018,1781231452000,-500.0,0.0003726,18]
[424882033,1781231452000,-500.0,0.0003726,18]
[424882035,1781231452000,-500.0,0.0003726,18]
[424882029,1781231452000,-500.0,0.0003726,18]
[424882037,1781231452000,-3868.0,0.0003726,18]
[424882038,1781231452000,-885.32,0.0003726,18]
[424882040,1781231452000,-4870.13,0.0003726,18]
[424882052,1781231452000,-523.72,0.0003726,18]
[424882050,1781231452000,-517.83,0.0003726,18]
[424882086,1781231452000,-152.66845928,0.00037477,58]
[424882212,1781231452000,-813.82,0.00037534,6]
[424882098,1781231452000,-1180.3952,0.00037534,18]
[424882168,1781231452000,-625.23,0.00037534,18]
[424882166,1781231452000,-1220.31,0.00037534,18]
[424882153,1781231452000,-500.0,0.00037534,18]
[424882159,1781231452000,-500.0,0.00037534,18]
[424882170,1781231452000,-966.05,0.00037534,18]
[424882171,1781231452000,-500.0,0.00037534,18]
[424882175,1781231452000,-557.26,0.00037534,18]
[424882173,1781231452000,-500.0,0.00037534,18]
[424882177,1781231452000,-1979.47,0.00037534,18]
[424882178,1781231452000,-500.0,0.00037534,18]
[424882182,1781231452000,-500.0,0.00037534,18]
[424882180,1781231452000,-1407.18,0.00037534,18]
[424882187,1781231452000,-500.0,0.00037534,18]
[424882184,1781231452000,-500.0,0.00037534,18]
[424882195,1781231452000,-500.0,0.00037534,18]
[424882185,1781231452000,-500.0,0.00037534,2]
[424882189,1781231452000,-2365.42,0.00037534,18]
[424882193,1781231452000,-500.0,0.00037534,18]
[424882191,1781231452000,-500.0,0.00037534,18]
[424882196,1781231452000,-500.0,0.00037534,18]
[424882198,1781231452000,-500.03,0.00037534,18]
[424882202,1781231452000,-500.0,0.00037534,18]
[424882200,1781231452000,-500.0,0.00037534,18]
[424882208,1781231452000,-853.99,0.00037534,18]
[424882206,1781231452000,-500.0,0.00037534,18]
[424882204,1781231452000,-728.83,0.00037534,18]
[424882210,1781231452000,-500.0,0.00037534,18]
[424882214,1781231452000,-500.0,0.00037534,18]
[424882094,1781231452000,-155.20474881,0.00037504,6]
[424882151,1781231452000,-500.0,0.00037534,18]
[424882164,1781231452000,-321.94015934,0.00037534,18]
[424882215,1781231452000,-571.19,0.00037534,18]
[424882155,1781231452000,-724.97,0.00037534,18]
[424882101,1781231452000,-500.0,0.00037534,18]
[424882103,1781231452000,-500.0,0.00037534,18]
[424882105,1781231452000,-558.13,0.00037534,18]
[424882107,1781231452000,-500.0,0.00037534,18]
[424882113,1781231452000,-500.0,0.00037534,18]
[424882099,1781231452000,-500.0,0.00037534,18]
[424882111,1781231452000,-678.69,0.00037534,18]
[424882109,1781231452000,-732.82,0.00037534,18]
[424882157,1781231452000,-500.0,0.00037534,18]
[424882122,1781231452000,-500.0,0.00037534,18]
[424882118,1781231452000,-807.9,0.00037534,18]
[424882116,1781231452000,-500.0,0.00037534,18]
[424882115,1781231452000,-500.0,0.00037534,18]
[424882124,1781231452000,-574.58,0.00037534,18]
[424882120,1781231452000,-500.0,0.00037534,18]
[424882128,1781231452000,-1111.26,0.00037534,18]
[424882161,1781231452000,-500.0,0.00037534,18]
[424882126,1781231452000,-500.0,0.00037534,18]
[424882163,1781231452000,-500.0,0.00037534,18]
[424882149,1781231452000,-500.0,0.00037534,18]
[424882147,1781231452000,-500.0,0.00037534,18]
[424882141,1781231452000,-500.0,0.00037534,18]
[424882145,1781231452000,-500.0,0.00037534,18]
[424882143,1781231452000,-500.0,0.00037534,18]
[424882139,1781231452000,-500.0,0.00037534,18]
[424882136,1781231452000,-500.0,0.00037534,18]
[424882134,1781231452000,-500.0,0.00037534,18]
[424882130,1781231452000,-500.0,0.00037534,18]
[424882132,1781231452000,-500.0,0.00037534,18]
[424882137,1781231452000,-749.48,0.00037534,18]
[424882285,1781231453000,-500.0,0.00037534,18]
[424882305,1781231453000,-500.0,0.00037534,18]
[424882296,1781231453000,-567.02,0.00037534,18]
[424882293,1781231453000,-500.0,0.00037534,18]
[424882291,1781231453000,-500.0,0.00037534,18]
[424882275,1781231453000,-708.56,0.00037534,18]
[424882273,1781231453000,-1134.1,0.00037534,18]
[424882279,1781231453000,-1561.74,0.00037534,18]
[424882278,1781231453000,-647.18,0.00037534,18]
[424882283,1781231453000,-500.0,0.00037534,18]
[424882289,1781231453000,-3143.69,0.00037534,18]
[424882287,1781231453000,-981.27,0.00037534,18]
[424882295,1781231453000,-663.12,0.00037534,18]
[424882321,1781231453000,-500.0,0.00037534,18]
[424882309,1781231453000,-500.0,0.00037534,2]
[424882302,1781231453000,-500.0,0.00037534,18]
[424882304,1781231453000,-5444.48,0.00037534,18]
[424882300,1781231453000,-500.0,0.00037534,18]
[424882307,1781231453000,-2203.78,0.00037534,18]
[424882311,1781231453000,-500.0,0.00037534,18]
[424882313,1781231453000,-1138.31,0.00037534,18]
[424882314,1781231453000,-2485.13,0.00037534,18]
[424882316,1781231453000,-500.0,0.00037534,18]
[424882319,1781231453000,-1045.9,0.00037534,18]
[424882318,1781231453000,-4131.71,0.00037534,18]
[424882323,1781231453000,-500.0,0.00037534,18]
[424882281,1781231453000,-618.55,0.00037534,18]
[424882298,1781231453000,-32026.49,0.00037534,18]
[424882269,1781231453000,-500.0,0.00037534,18]
[424882237,1781231453000,-500.0,0.00037534,18]
[424882260,1781231453000,-866.16,0.00037534,18]
[424882334,1781231453000,-500.0,0.00037534,18]
[424882219,1781231453000,-632.15,0.00037534,18]
[424882217,1781231453000,-881.39,0.00037534,18]
[424882221,1781231453000,-1363.04,0.00037534,18]
[424882223,1781231453000,-500.0,0.00037534,18]
[424882224,1781231453000,-1287.24,0.00037534,18]
[424882233,1781231453000,-500.0,0.00037534,18]
[424882226,1781231453000,-218.63149638,0.00037534,18]
[424882232,1781231453000,-500.0,0.00037534,18]
[424882228,1781231453000,-978.16,0.00037534,18]
[424882230,1781231453000,-505.06382344,0.00037534,18]
[424882239,1781231453000,-500.0,0.00037534,18]
[424882235,1781231453000,-500.0,0.00037534,18]
[424882271,1781231453000,-2993.01,0.00037534,18]
[424882243,1781231453000,-500.0,0.00037534,18]
[424882241,1781231453000,-500.0,0.00037534,18]
[424882246,1781231453000,-500.0,0.00037534,18]
[424882248,1781231453000,-500.0,0.00037534,18]
[424882251,1781231453000,-500.0,0.00037534,18]
[424882253,1781231453000,-500.0,0.00037534,18]
[424882258,1781231453000,-1014.47,0.00037534,18]
[424882249,1781231453000,-500.0,0.00037534,18]
[424882256,1781231453000,-555.84,0.00037534,18]
[424882255,1781231453000,-500.0,0.00037534,18]
[424882262,1781231453000,-500.0,0.00037534,18]
[424882264,1781231453000,-500.0,0.00037534,18]
[424882268,1781231453000,-716.83,0.00037534,18]
[424882266,1781231453000,-553.5,0.00037534,18]
[424882244,1781231453000,-836.14,0.00037534,18]
[424882332,1781231453000,-500.0,0.00037534,18]
[424882336,1781231453000,-1038.76,0.00037534,18]
[424882422,1781231453000,-607.01016117,0.00037685,120]
[424882388,1781231453000,-500.0,0.00037534,18]
[424882390,1781231453000,-500.0,0.00037534,18]
[424882403,1781231453000,-6094.36,0.00037534,18]
[424882393,1781231453000,-5500.81,0.00037534,18]
[424882405,1781231453000,-665.06,0.00037534,18]
[424882409,1781231453000,-1323.25,0.00037534,18]
[424882411,1781231453000,-500.0,0.00037534,18]
[424882407,1781231453000,-6410.85,0.00037534,18]
[424882423,1781231453000,-502.57452785,0.00037808,5]
[424882416,1781231453000,-187.0871,0.00037534,18]
[424882414,1781231453000,-500.0,0.00037534,18]
[424882412,1781231453000,-500.0,0.00037534,18]
[424882420,1781231453000,-595.79407078,0.00037608,7]
[424882385,1781231453000,-1342.78,0.00037534,18]
[424882425,1781231453000,-1195.1974,0.00037808,18]
[424882427,1781231453000,-151.0,0.00037808,2]
[424882429,1781231453000,-151.0,0.00037808,2]
[424882431,1781231453000,-151.0,0.00037808,2]
[424882442,1781231453000,-203.14791205,0.00037808,18]
[424882445,1781231453000,-500.0,0.00037808,18]
[424882447,1781231453000,-732.82,0.00037808,18]
[424882434,1781231453000,-151.0,0.00037808,2]
[424882444,1781231453000,-558.13,0.00037808,18]
[424882432,1781231453000,-151.0,0.00037808,2]
[424882436,1781231453000,-240.311,0.00037808,2]
[424882438,1781231453000,-500.0,0.00037808,18]
[424882326,1781231453000,-500.0,0.00037534,18]
[424882440,1781231453000,-500.0,0.00037808,18]
[424882418,1781231453000,-307.89,0.00037534,50]
[424882399,1781231453000,-500.0,0.00037534,18]
[424882392,1781231453000,-1613.81,0.00037534,18]
[424882386,1781231453000,-644.78,0.00037534,18]
[424882339,1781231453000,-2908.74,0.00037534,18]
[424882328,1781231453000,-728.55,0.00037534,2]
[424882337,1781231453000,-500.0,0.00037534,18]
[424882325,1781231453000,-500.0,0.00037534,18]
[424882330,1781231453000,-500.0,0.00037534,18]
[424882341,1781231453000,-2024.84,0.00037534,18]
[424882345,1781231453000,-500.0,0.00037534,18]
[424882343,1781231453000,-500.0,0.00037534,18]
[424882347,1781231453000,-728.51,0.00037534,18]
[424882401,1781231453000,-500.0,0.00037534,18]
[424882354,1781231453000,-5137.44,0.00037534,18]
[424882351,1781231453000,-2031.31,0.00037534,18]
[424882356,1781231453000,-500.0,0.00037534,18]
[424882362,1781231453000,-1194.23,0.00037534,18]
[424882358,1781231453000,-885.32,0.00037534,18]
[424882349,1781231453000,-500.0,0.00037534,18]
[424882360,1781231453000,-4870.13,0.00037534,18]
[424882395,1781231453000,-3338.79,0.00037534,18]
[424882357,1781231453000,-3868.0,0.00037534,18]
[424882366,1781231453000,-500.0,0.00037534,18]
[424882381,1781231453000,-500.0,0.00037534,18]
[424882382,1781231453000,-1708.55,0.00037534,18]
[424882373,1781231453000,-523.72,0.00037534,18]
[424882397,1781231453000,-1411.07,0.00037534,18]
[424882368,1781231453000,-500.0,0.00037534,18]
[424882369,1781231453000,-2933.19,0.00037534,11]
[424882364,1781231453000,-687.74,0.00037534,18]
[424882352,1781231453000,-403.23261466,0.00037534,18]
[424882371,1781231453000,-517.83,0.00037534,18]
[424882533,1781231454000,-500.0,0.00037808,18]
[424882529,1781231454000,-500.0,0.00037808,18]
[424882528,1781231454000,-2365.42,0.00037808,18]
[424882512,1781231454000,-557.26,0.00037808,18]
[424882516,1781231454000,-500.0,0.00037808,18]
[424882522,1781231454000,-500.0,0.00037808,18]
[424882526,1781231454000,-500.0,0.00037808,18]
[424882520,1781231454000,-500.0,0.00037808,18]
[424882524,1781231454000,-500.0,0.00037808,2]
[424882510,1781231454000,-500.0,0.00037808,18]
[424882531,1781231454000,-500.0,0.00037808,18]
[424882518,1781231454000,-1407.18,0.00037808,18]
[424882535,1781231454000,-500.0,0.00037808,18]
[424882563,1781231454000,-1287.24,0.00037808,18]
[424882537,1781231454000,-500.03,0.00037808,18]
[424882541,1781231454000,-180.95926331,0.00037808,18]
[424882543,1781231454000,-728.83,0.00037808,18]
[424882545,1781231454000,-500.0,0.00037808,18]
[424882550,1781231454000,-813.82,0.00037808,6]
[424882547,1781231454000,-853.99,0.00037808,18]
[424882554,1781231454000,-571.19,0.00037808,18]
[424882552,1781231454000,-500.0,0.00037808,18]
[424882558,1781231454000,-632.15,0.00037808,18]
[424882556,1781231454000,-881.39,0.00037808,18]
[424882562,1781231454000,-500.0,0.00037808,18]
[424882567,1781231454000,-273.68592954,0.00037808,18]
[424882514,1781231454000,-1979.47,0.00037808,18]
[424882539,1781231454000,-500.0,0.00037808,18]
[424882508,1781231454000,-480.72311373,0.00037808,18]
[424882449,1781231454000,-678.69,0.00037808,18]
[424882504,1781231454000,-625.23,0.00037808,18]
[424882451,1781231454000,-500.0,0.00037808,18]
[424882453,1781231454000,-500.0,0.00037808,18]
[424882457,1781231454000,-807.9,0.00037808,18]
[424882458,1781231454000,-500.0,0.00037808,18]
[424882464,1781231454000,-500.0,0.00037808,18]
[424882455,1781231454000,-500.0,0.00037808,18]
[424882462,1781231454000,-574.58,0.00037808,18]
[424882460,1781231454000,-500.0,0.00037808,18]
[424882466,1781231454000,-1111.26,0.00037808,18]
[424882467,1781231454000,-500.0,0.00037808,18]
[424882471,1781231454000,-500.0,0.00037808,18]
[424882469,1781231454000,-500.0,0.00037808,18]
[424882473,1781231454000,-500.0,0.00037808,18]
[424882506,1781231454000,-966.05,0.00037808,18]
[424882475,1781231454000,-749.48,0.00037808,18]
[424882480,1781231454000,-500.0,0.00037808,18]
[424882492,1781231454000,-724.97,0.00037808,18]
[424882494,1781231454000,-500.0,0.00037808,18]
[424882490,1781231454000,-500.0,0.00037808,18]
[424882479,1781231454000,-500.0,0.00037808,18]
[424882496,1781231454000,-500.0,0.00037808,18]
[424882498,1781231454000,-500.0,0.00037808,18]
[424882488,1781231454000,-500.0,0.00037808,18]
[424882502,1781231454000,-1220.31,0.00037808,18]
[424882482,1781231454000,-500.0,0.00037808,18]
[424882500,1781231454000,-500.0,0.00037808,18]
[424882487,1781231454000,-500.0,0.00037808,18]
[424882484,1781231454000,-500.0,0.00037808,18]
[424882477,1781231454000,-500.0,0.00037808,18]
[424882569,1781231454000,-614.86778937,0.00037808,18]
[424882548,1781231454000,-500.0,0.00037808,18]
[424882565,1781231454000,-978.16,0.00037808,18]
[424882643,1781231454000,-500.0,0.00037808,18]
[424882645,1781231454000,-2203.78,0.00037808,18]
[424882647,1781231454000,-500.0,0.00037808,2]
[424882649,1781231454000,-500.0,0.00037808,18]
[424882630,1781231454000,-500.0,0.00037808,18]
[424882633,1781231454000,-567.02,0.00037808,18]
[424882637,1781231454000,-500.0,0.00037808,18]
[424882635,1781231454000,-32026.49,0.00037808,18]
[424882650,1781231454000,-1138.31,0.00037808,18]
[424882652,1781231454000,-2485.13,0.00037808,18]
[424882662,1781231454000,-500.0,0.00037808,18]
[424882664,1781231454000,-500.0,0.00037808,18]
[424882666,1781231454000,-500.0,0.00037808,18]
[424882641,1781231454000,-5444.48,0.00037808,18]
[424882667,1781231454000,-728.55,0.00037808,2]
[424882658,1781231454000,-1045.9,0.00037808,18]
[424882654,1781231454000,-500.0,0.00037808,18]
[424882660,1781231454000,-500.0,0.00037808,18]
[424882656,1781231454000,-4131.71,0.00037808,18]
[424882673,1781231454000,-500.0,0.00037808,18]
[424882671,1781231454000,-500.0,0.00037808,18]
[424882675,1781231454000,-1038.76,0.00037808,18]
[424882681,1781231454000,-2024.84,0.00037808,18]
[424882679,1781231454000,-2908.74,0.00037808,18]
[424882677,1781231454000,-500.0,0.00037808,18]
[424882683,1781231454000,-500.0,0.00037808,18]
[424882687,1781231454000,-500.0,0.00037808,18]
[424882560,1781231454000,-1363.04,0.00037808,18]
[424882669,1781231454000,-500.0,0.00037808,18]
[424882639,1781231454000,-500.0,0.00037808,18]
[424882631,1781231454000,-663.12,0.00037808,18]
[424882626,1781231454000,-3143.69,0.00037808,18]
[424882573,1781231454000,-500.0,0.00037808,18]
[424882571,1781231454000,-500.0,0.00037808,18]
[424882576,1781231454000,-500.0,0.00037808,18]
[424882628,1781231454000,-500.0,0.00037808,18]
[424882578,1781231454000,-500.0,0.00037808,18]
[424882580,1781231454000,-836.14,0.00037808,18]
[424882588,1781231454000,-500.0,0.00037808,18]
[424882589,1781231454000,-500.0,0.00037808,18]
[424882582,1781231454000,-500.0,0.00037808,18]
[424882593,1781231454000,-555.84,0.00037808,18]
[424882591,1781231454000,-500.0,0.00037808,18]
[424882595,1781231454000,-1014.47,0.00037808,18]
[424882584,1781231454000,-500.0,0.00037808,18]
[424882586,1781231454000,-500.0,0.00037808,18]
[424882598,1781231454000,-866.16,0.00037808,18]
[424882574,1781231454000,-500.0,0.00037808,18]
[424882602,1781231454000,-500.0,0.00037808,18]
[424882600,1781231454000,-500.0,0.00037808,18]
[424882624,1781231454000,-981.27,0.00037808,18]
[424882607,1781231454000,-500.0,0.00037808,18]
[424882605,1781231454000,-716.83,0.00037808,18]
[424882611,1781231454000,-1134.1,0.00037808,18]
[424882603,1781231454000,-553.5,0.00037808,18]
[424882613,1781231454000,-708.56,0.00037808,18]
[424882622,1781231454000,-502.53011845,0.00037808,18]
[424882617,1781231454000,-1561.74,0.00037808,18]
[424882615,1781231454000,-647.18,0.00037808,18]
[424882620,1781231454000,-500.0,0.00037808,18]
[424882609,1781231454000,-2993.01,0.00037808,18]
[424882618,1781231454000,-618.55,0.00037808,18]
[424882704,1781231455000,-1194.23,0.00037808,18]
[424882715,1781231455000,-523.72,0.00037808,18]
[424882708,1781231455000,-500.0,0.00037808,18]
[424882719,1781231455000,-1708.55,0.00037808,18]
[424882726,1781231455000,-500.0,0.00037808,18]
[424882724,1781231455000,-500.0,0.00037808,18]
[424882722,1781231455000,-644.78,0.00037808,18]
[424882711,1781231455000,-2933.19,0.00037808,11]
[424882728,1781231455000,-1613.81,0.00037808,18]
[424882721,1781231455000,-1342.78,0.00037808,18]
[424882702,1781231455000,-4870.13,0.00037808,18]
[424882696,1781231455000,-500.0,0.00037808,18]
[424882706,1781231455000,-687.74,0.00037808,18]
[424882713,1781231455000,-517.83,0.00037808,18]
[424882710,1781231455000,-500.0,0.00037808,18]
[424882698,1781231455000,-3868.0,0.00037808,18]
[424882700,1781231455000,-885.32,0.00037808,18]
[424882694,1781231455000,-5137.44,0.00037808,18]
[424882691,1781231455000,-568.22648198,0.00037808,18]
[424882693,1781231455000,-2031.31,0.00037808,18]
[424882689,1781231455000,-728.51,0.00037808,18]
[424882730,1781231455000,-5500.81,0.00037808,18]
[424882717,1781231455000,-500.0,0.00037808,18]
[424882732,1781231455000,-3338.79,0.00037808,18]
[424882777,1781231455000,-500.0,0.00037808,18]
[424882744,1781231455000,-1323.25,0.00037808,18]
[424882805,1781231455000,-2299.92648776,0.00035616,2]
[424882742,1781231455000,-6410.85,0.00037808,18]
[424882803,1781231455000,-294.91891761,0.00035616,2]
[424882799,1781231455000,-1080.56846052,0.00035616,2]
[424882797,1781231455000,-2520.50783791,0.00035616,2]
[424882795,1781231455000,-5000.0,0.0003526,9]
[424882775,1781231455000,-500.0,0.00037534,18]
[424882766,1781231455000,-500.0,0.00036164,18]
[424882768,1781231455000,-500.0,0.00036438,18]
[424882770,1781231455000,-500.0,0.00036712,18]
[424882779,1781231455000,-85.85964736,0.000379,120]
[424882801,1781231455000,-4954.72033181,0.00035616,2]
[424882772,1781231455000,-500.0,0.00036986,18]
[424882751,1781231455000,-12853.74781058,0.000379,120]
[424882750,1781231455000,-500.0,0.00037808,18]
[424882748,1781231455000,-500.0,0.00037808,18]
[424882746,1781231455000,-500.0,0.00037808,18]
[424882737,1781231455000,-500.0,0.00037808,18]
[424882741,1781231455000,-665.06,0.00037808,18]
[424882733,1781231455000,-1411.07,0.00037808,18]
[424882739,1781231455000,-6094.36,0.00037808,18]
[424882735,1781231455000,-500.0,0.00037808,18]
[424882774,1781231455000,-500.0,0.0003726,18]
[424883261,1781231471000,5000.0,0.00024658,30]
[424883262,1781231493000,5000.0,0.00024658,30]
[424883263,1781231515000,5000.0,0.00024658,30]
[424883360,1781232638000,-500.0,0.00023999,2]
[424883357,1781232638000,-432.0793238,0.00023999,2]
[424883370,1781232638000,-3296.0209598,0.00026987,2]
[424883361,1781232638000,-500.0,0.00023999,2]
[424883356,1781232638000,-500.0,0.00023999,2]
[424883365,1781232638000,-617.29493569,0.000247,2]
[424883358,1781232638000,-500.0,0.00023999,2]
[424883373,1781232638000,-14683.306449,0.00027476,120]
[424883362,1781232638000,-617.29493569,0.00024,2]
[424883363,1781232638000,-617.29493569,0.000242,2]
[424883366,1781232638000,-617.29493569,0.000249,2]
[424883368,1781232638000,-161.4598,0.000261,3]
[424883369,1781232638000,-837.29756602,0.00026437,2]
[424883355,1781232638000,-500.0,0.00023999,2]
[424883359,1781232638000,-500.0,0.00023999,2]
[424883353,1781232638000,-500.0,0.00023999,2]
[424883347,1781232638000,-864.15313489,0.00023264,120]
[424883354,1781232638000,-500.0,0.00023999,2]
[424883376,1781232638000,-837.29756602,0.00027706,2]
[424883338,1781232638000,-5000.0,0.00018165,9]
[424883339,1781232638000,-5000.0,0.00018348,9]
[424883340,1781232638000,-300.0,0.00019099,2]
[424883342,1781232638000,-170.2,0.000191,2]
[424883343,1781232638000,-1715.439,0.000205,2]
[424883351,1781232638000,-837.29756606,0.000239,2]
[424883349,1781232638000,-500.0,0.00023699,2]
[424883344,1781232638000,-1715.44,0.000205,2]
[424883346,1781232638000,-420.0,0.00020816,2]
[424883345,1781232638000,-214.7516,0.000205,2]
[424883350,1781232638000,-171.8411,0.00023886,2]
[424883348,1781232638000,-791.7215255,0.00023401,2]
[424883352,1781232638000,-417.15472785,0.0002396,2]
[424883341,1781232638000,-244.1035217,0.000191,2]
[424883364,1781232638000,-617.29493569,0.000244,2]
[424883379,1781232638000,-3480.4681607,0.00028679,120]
[424883383,1781232638000,-500.0,0.00028973,2]
[424883371,1781232638000,-160.0,0.00027,7]
[424883394,1781232638000,-1434.652,0.00032714,2]
[424883396,1781232638000,-837.29756602,0.0003278,2]
[424883398,1781232638000,-500.0,0.00034084,18]
[424883397,1781232638000,-837.29756602,0.00034048,2]
[424883400,1781232638000,-152.0,0.00034622,7]
[424883399,1781232638000,-152.0,0.00034622,7]